Workbook

Sheet Reiknivél
N1: Hemill | O1: Mælir | S1: Dreifing yfir árið
D2: Fyrri álestur | G2: Seinni álestur | N2: Lítrar / mín | O2: m3 / sólarhr | P2: m3 / viku | Q2: m3 / mán | S2: Janúar | T2: 1.24
D3: dagsetning | E3: álestur | G3: dagsetning | H3: álestur | N3: 1.5 | O3: =+N3*60*24*0.532/1000 -> 1.14912 | P3: =+O3*7 -> 8.04384 | Q3: =+O3*30 -> 34.4736 | S3: Febrúar | T3: 1.22
D4: 10.3.2016 | E4: 0 | G4: 16.6.2016 | H4: 100 | N4: 2 | O4: =+N4*60*24*0.532/1000 -> 1.53216 | P4: =+O4*7 -> 10.72512 | Q4: =+O4*30 -> 45.9648 | S4: Mars | T4: 1.2
K5: stuðull 1. álestur | N5: 2.5 | O5: 1.9152 | P5: 13.4064 | Q5: 57.456 | S5: Apríl | T5: 1.08
J6: =+DATEVALUE(D4) -> 42439 | K6: =LOOKUP(J6,dreifing!F2:F1097,dreifing!G2:G1097) -> 1.29188 | N6: 3 | O6: 2.29824 | P6: 16.08768 | Q6: 68.9472 | S6: Maí | T6: 0.91
A7: Notkun milli álestra | D7: Fjöldi daga | G7: Notkun pr. dag á tímabili | K7: stuðull 2. álestur | N7: 3.5 | O7: 2.68128 | P7: 18.76896 | Q7: 80.4384 | S7: Júní | T7: 0.7
A8: =+H4-E4 -> 100 | D8: =DATEDIF(D4,G4,"d") -> 98 | G8: =+A8/D8 -> 1.020408163 | J8: =DATEVALUE(G4) -> 42537 | K8: =LOOKUP(J8,dreifing!F2:F1097,dreifing!G2:G1097) -> 0.57768 | N8: 4 | O8: 3.06432 | P8: 21.45024 | Q8: 91.9296 | S8: Júlí | T8: 0.66
N9: 4.5 | O9: =+N9*60*24*0.532/1000 -> 3.44736 | P9: =+O9*7 -> 24.13152 | Q9: =+O9*30 -> 103.4208 | S9: Ágúst | T9: 0.66
A10: Áætlaður kostnaður á mánuði: | D10: =G8/K11*30.4*111.24+932 -> 4623.467729 | E10: kr m. vsk | K10: Meðaltal | N10: 5 | O10: =+N10*60*24*0.532/1000 -> 3.8304 | P10: =+O10*7 -> 26.8128 | Q10: =+O10*30 -> 114.912 | S10: September | T10: 0.85
K11: =+(K6+K8)/2 -> 0.93478 | N11: 5.5 | O11: =+N11*60*24*0.532/1000 -> 4.21344 | P11: =+O11*7 -> 29.49408 | Q11: =+O11*30 -> 126.4032 | S11: Október | T11: 1.08
N12: 6 | O12: 4.59648 | P12: 32.17536 | Q12: 137.8944 | S12: Nóvember | T12: 1.2
N13: 6.5 | O13: 4.97952 | P13: 34.85664 | Q13: 149.3856 | S13: Desember | T13: 1.28
N14: 7 | O14: 5.36256 | P14: 37.53792 | Q14: 160.8768
N15: 7.5 | O15: 5.7456 | P15: 40.2192 | Q15: 172.368
N16: 8 | O16: 6.12864 | P16: 42.90048 | Q16: 183.8592

Sheet dreifing
A1: DD áf | B1: MM áf | C1: Ferill | D1: Nr. dags | G1: Hlutstuðull
A2: 1 | B2: 1 | C2: H1 | D2: 1 | E2: 2014-01-01 | F2: 41640 | G2: 1.47186
A3: 2 | B3: 1 | C3: H1 | D3: 2 | E3: 2014-01-02 | F3: 41641 | G3: 1.47393
A4: 3 | B4: 1 | C4: H1 | D4: 3 | E4: 2014-01-03 | F4: 41642 | G4: 1.47587
A5: 4 | B5: 1 | C5: H1 | D5: 4 | E5: 2014-01-04 | F5: 41643 | G5: 1.47766
A6: 5 | B6: 1 | C6: H1 | D6: 5 | E6: 2014-01-05 | F6: 41644 | G6: 1.47931
A7: 6 | B7: 1 | C7: H1 | D7: 6 | E7: 2014-01-06 | F7: 41645 | G7: 1.48082
A8: 7 | B8: 1 | C8: H1 | D8: 7 | E8: 2014-01-07 | F8: 41646 | G8: 1.48219
A9: 8 | B9: 1 | C9: H1 | D9: 8 | E9: 2014-01-08 | F9: 41647 | G9: 1.48341
A10: 9 | B10: 1 | C10: H1 | D10: 9 | E10: 2014-01-09 | F10: 41648 | G10: 1.48449
A11: 10 | B11: 1 | C11: H1 | D11: 10 | E11: 2014-01-10 | F11: 41649 | G11: 1.48543
A12: 11 | B12: 1 | C12: H1 | D12: 11 | E12: 2014-01-11 | F12: 41650 | G12: 1.48622
A13: 12 | B13: 1 | C13: H1 | D13: 12 | E13: 2014-01-12 | F13: 41651 | G13: 1.48687
A14: 13 | B14: 1 | C14: H1 | D14: 13 | E14: 2014-01-13 | F14: 41652 | G14: 1.48738
A15: 14 | B15: 1 | C15: H1 | D15: 14 | E15: 2014-01-14 | F15: 41653 | G15: 1.48774
A16: 15 | B16: 1 | C16: H1 | D16: 15 | E16: 2014-01-15 | F16: 41654 | G16: 1.48795
A17: 16 | B17: 1 | C17: H1 | D17: 16 | E17: 2014-01-16 | F17: 41655 | G17: 1.48802
A18: 17 | B18: 1 | C18: H1 | D18: 17 | E18: 2014-01-17 | F18: 41656 | G18: 1.48795
A19: 18 | B19: 1 | C19: H1 | D19: 18 | E19: 2014-01-18 | F19: 41657 | G19: 1.48773
A20: 19 | B20: 1 | C20: H1 | D20: 19 | E20: 2014-01-19 | F20: 41658 | G20: 1.48737
A21: 20 | B21: 1 | C21: H1 | D21: 20 | E21: 2014-01-20 | F21: 41659 | G21: 1.48686
A22: 21 | B22: 1 | C22: H1 | D22: 21 | E22: 2014-01-21 | F22: 41660 | G22: 1.48621
A23: 22 | B23: 1 | C23: H1 | D23: 22 | E23: 2014-01-22 | F23: 41661 | G23: 1.48542
A24: 23 | B24: 1 | C24: H1 | D24: 23 | E24: 2014-01-23 | F24: 41662 | G24: 1.48448
A25: 24 | B25: 1 | C25: H1 | D25: 24 | E25: 2014-01-24 | F25: 41663 | G25: 1.4834
A26: 25 | B26: 1 | C26: H1 | D26: 25 | E26: 2014-01-25 | F26: 41664 | G26: 1.48217
A27: 26 | B27: 1 | C27: H1 | D27: 26 | E27: 2014-01-26 | F27: 41665 | G27: 1.4808
A28: 27 | B28: 1 | C28: H1 | D28: 27 | E28: 2014-01-27 | F28: 41666 | G28: 1.47929
A29: 28 | B29: 1 | C29: H1 | D29: 28 | E29: 2014-01-28 | F29: 41667 | G29: 1.47764
A30: 29 | B30: 1 | C30: H1 | D30: 29 | E30: 2014-01-29 | F30: 41668 | G30: 1.47584
A31: 30 | B31: 1 | C31: H1 | D31: 30 | E31: 2014-01-30 | F31: 41669 | G31: 1.47391
A32: 31 | B32: 1 | C32: H1 | D32: 31 | E32: 2014-01-31 | F32: 41670 | G32: 1.47183
A33: 1 | B33: 2 | C33: H1 | D33: 32 | E33: 2014-02-01 | F33: 41671 | G33: 1.46961
A34: 2 | B34: 2 | C34: H1 | D34: 33 | E34: 2014-02-02 | F34: 41672 | G34: 1.46726
A35: 3 | B35: 2 | C35: H1 | D35: 34 | E35: 2014-02-03 | F35: 41673 | G35: 1.46477
A36: 4 | B36: 2 | C36: H1 | D36: 35 | E36: 2014-02-04 | F36: 41674 | G36: 1.46213
A37: 5 | B37: 2 | C37: H1 | D37: 36 | E37: 2014-02-05 | F37: 41675 | G37: 1.45937
A38: 6 | B38: 2 | C38: H1 | D38: 37 | E38: 2014-02-06 | F38: 41676 | G38: 1.45646
A39: 7 | B39: 2 | C39: H1 | D39: 38 | E39: 2014-02-07 | F39: 41677 | G39: 1.45342
A40: 8 | B40: 2 | C40: H1 | D40: 39 | E40: 2014-02-08 | F40: 41678 | G40: 1.45025
A41: 9 | B41: 2 | C41: H1 | D41: 40 | E41: 2014-02-09 | F41: 41679 | G41: 1.44694
A42: 10 | B42: 2 | C42: H1 | D42: 41 | E42: 2014-02-10 | F42: 41680 | G42: 1.4435
A43: 11 | B43: 2 | C43: H1 | D43: 42 | E43: 2014-02-11 | F43: 41681 | G43: 1.43993
A44: 12 | B44: 2 | C44: H1 | D44: 43 | E44: 2014-02-12 | F44: 41682 | G44: 1.43623
A45: 13 | B45: 2 | C45: H1 | D45: 44 | E45: 2014-02-13 | F45: 41683 | G45: 1.4324
A46: 14 | B46: 2 | C46: H1 | D46: 45 | E46: 2014-02-14 | F46: 41684 | G46: 1.42844
A47: 15 | B47: 2 | C47: H1 | D47: 46 | E47: 2014-02-15 | F47: 41685 | G47: 1.42435
A48: 16 | B48: 2 | C48: H1 | D48: 47 | E48: 2014-02-16 | F48: 41686 | G48: 1.42014
A49: 17 | B49: 2 | C49: H1 | D49: 48 | E49: 2014-02-17 | F49: 41687 | G49: 1.4158
A50: 18 | B50: 2 | C50: H1 | D50: 49 | E50: 2014-02-18 | F50: 41688 | G50: 1.41135
A51: 19 | B51: 2 | C51: H1 | D51: 50 | E51: 2014-02-19 | F51: 41689 | G51: 1.40676
A52: 20 | B52: 2 | C52: H1 | D52: 51 | E52: 2014-02-20 | F52: 41690 | G52: 1.40206
A53: 21 | B53: 2 | C53: H1 | D53: 52 | E53: 2014-02-21 | F53: 41691 | G53: 1.39724
A54: 22 | B54: 2 | C54: H1 | D54: 53 | E54: 2014-02-22 | F54: 41692 | G54: 1.3923
A55: 23 | B55: 2 | C55: H1 | D55: 54 | E55: 2014-02-23 | F55: 41693 | G55: 1.38725
A56: 24 | B56: 2 | C56: H1 | D56: 55 | E56: 2014-02-24 | F56: 41694 | G56: 1.38208
A57: 25 | B57: 2 | C57: H1 | D57: 56 | E57: 2014-02-25 | F57: 41695 | G57: 1.3768
A58: 26 | B58: 2 | C58: H1 | D58: 57 | E58: 2014-02-26 | F58: 41696 | G58: 1.3714
A59: 27 | B59: 2 | C59: H1 | D59: 58 | E59: 2014-02-27 | F59: 41697 | G59: 1.3659
A60: 28 | B60: 2 | C60: H1 | D60: 59 | E60: 2014-02-28 | F60: 41698 | G60: 1.36028
A61: 1 | B61: 3 | C61: H1 | D61: 60 | E61: 2014-03-01 | F61: 41699 | G61: 1.35456
A62: 2 | B62: 3 | C62: H1 | D62: 61 | E62: 2014-03-02 | F62: 41700 | G62: 1.34874
A63: 3 | B63: 3 | C63: H1 | D63: 62 | E63: 2014-03-03 | F63: 41701 | G63: 1.34281
A64: 4 | B64: 3 | C64: H1 | D64: 63 | E64: 2014-03-04 | F64: 41702 | G64: 1.33678
A65: 5 | B65: 3 | C65: H1 | D65: 64 | E65: 2014-03-05 | F65: 41703 | G65: 1.33065
A66: 6 | B66: 3 | C66: H1 | D66: 65 | E66: 2014-03-06 | F66: 41704 | G66: 1.32442
A67: 7 | B67: 3 | C67: H1 | D67: 66 | E67: 2014-03-07 | F67: 41705 | G67: 1.3181
A68: 8 | B68: 3 | C68: H1 | D68: 67 | E68: 2014-03-08 | F68: 41706 | G68: 1.31168
A69: 9 | B69: 3 | C69: H1 | D69: 68 | E69: 2014-03-09 | F69: 41707 | G69: 1.30517
A70: 10 | B70: 3 | C70: H1 | D70: 69 | E70: 2014-03-10 | F70: 41708 | G70: 1.29857
A71: 11 | B71: 3 | C71: H1 | D71: 70 | E71: 2014-03-11 | F71: 41709 | G71: 1.29188
A72: 12 | B72: 3 | C72: H1 | D72: 71 | E72: 2014-03-12 | F72: 41710 | G72: 1.28511
A73: 13 | B73: 3 | C73: H1 | D73: 72 | E73: 2014-03-13 | F73: 41711 | G73: 1.27825
A74: 14 | B74: 3 | C74: H1 | D74: 73 | E74: 2014-03-14 | F74: 41712 | G74: 1.2713
A75: 15 | B75: 3 | C75: H1 | D75: 74 | E75: 2014-03-15 | F75: 41713 | G75: 1.26428
A76: 16 | B76: 3 | C76: H1 | D76: 75 | E76: 2014-03-16 | F76: 41714 | G76: 1.25718
A77: 17 | B77: 3 | C77: H1 | D77: 76 | E77: 2014-03-17 | F77: 41715 | G77: 1.25
A78: 18 | B78: 3 | C78: H1 | D78: 77 | E78: 2014-03-18 | F78: 41716 | G78: 1.24275
A79: 19 | B79: 3 | C79: H1 | D79: 78 | E79: 2014-03-19 | F79: 41717 | G79: 1.23543
A80: 20 | B80: 3 | C80: H1 | D80: 79 | E80: 2014-03-20 | F80: 41718 | G80: 1.22803
A81: 21 | B81: 3 | C81: H1 | D81: 80 | E81: 2014-03-21 | F81: 41719 | G81: 1.22057
A82: 22 | B82: 3 | C82: H1 | D82: 81 | E82: 2014-03-22 | F82: 41720 | G82: 1.21305
A83: 23 | B83: 3 | C83: H1 | D83: 82 | E83: 2014-03-23 | F83: 41721 | G83: 1.20546
A84: 24 | B84: 3 | C84: H1 | D84: 83 | E84: 2014-03-24 | F84: 41722 | G84: 1.19781
A85: 25 | B85: 3 | C85: H1 | D85: 84 | E85: 2014-03-25 | F85: 41723 | G85: 1.1901
A86: 26 | B86: 3 | C86: H1 | D86: 85 | E86: 2014-03-26 | F86: 41724 | G86: 1.18233
A87: 27 | B87: 3 | C87: H1 | D87: 86 | E87: 2014-03-27 | F87: 41725 | G87: 1.17451
A88: 28 | B88: 3 | C88: H1 | D88: 87 | E88: 2014-03-28 | F88: 41726 | G88: 1.16664
A89: 29 | B89: 3 | C89: H1 | D89: 88 | E89: 2014-03-29 | F89: 41727 | G89: 1.15872
A90: 30 | B90: 3 | C90: H1 | D90: 89 | E90: 2014-03-30 | F90: 41728 | G90: 1.15076
A91: 31 | B91: 3 | C91: H1 | D91: 90 | E91: 2014-03-31 | F91: 41729 | G91: 1.14274
A92: 1 | B92: 4 | C92: H1 | D92: 91 | E92: 2014-04-01 | F92: 41730 | G92: 1.13469
A93: 2 | B93: 4 | C93: H1 | D93: 92 | E93: 2014-04-02 | F93: 41731 | G93: 1.12659
A94: 3 | B94: 4 | C94: H1 | D94: 93 | E94: 2014-04-03 | F94: 41732 | G94: 1.11846
A95: 4 | B95: 4 | C95: H1 | D95: 94 | E95: 2014-04-04 | F95: 41733 | G95: 1.1103
A96: 5 | B96: 4 | C96: H1 | D96: 95 | E96: 2014-04-05 | F96: 41734 | G96: 1.1021
A97: 6 | B97: 4 | C97: H1 | D97: 96 | E97: 2014-04-06 | F97: 41735 | G97: 1.09387
A98: 7 | B98: 4 | C98: H1 | D98: 97 | E98: 2014-04-07 | F98: 41736 | G98: 1.08561
A99: 8 | B99: 4 | C99: H1 | D99: 98 | E99: 2014-04-08 | F99: 41737 | G99: 1.07733
A100: 9 | B100: 4 | C100: H1 | D100: 99 | E100: 2014-04-09 | F100: 41738 | G100: 1.06902
A101: 10 | B101: 4 | C101: H1 | D101: 100 | E101: 2014-04-10 | F101: 41739 | G101: 1.06069
A102: 11 | B102: 4 | C102: H1 | D102: 101 | E102: 2014-04-11 | F102: 41740 | G102: 1.05235
A103: 12 | B103: 4 | C103: H1 | D103: 102 | E103: 2014-04-12 | F103: 41741 | G103: 1.04399
A104: 13 | B104: 4 | C104: H1 | D104: 103 | E104: 2014-04-13 | F104: 41742 | G104: 1.03562
A105: 14 | B105: 4 | C105: H1 | D105: 104 | E105: 2014-04-14 | F105: 41743 | G105: 1.02723
A106: 15 | B106: 4 | C106: H1 | D106: 105 | E106: 2014-04-15 | F106: 41744 | G106: 1.01884
A107: 16 | B107: 4 | C107: H1 | D107: 106 | E107: 2014-04-16 | F107: 41745 | G107: 1.01045
A108: 17 | B108: 4 | C108: H1 | D108: 107 | E108: 2014-04-17 | F108: 41746 | G108: 1.00204
A109: 18 | B109: 4 | C109: H1 | D109: 108 | E109: 2014-04-18 | F109: 41747 | G109: 0.99364
A110: 19 | B110: 4 | C110: H1 | D110: 109 | E110: 2014-04-19 | F110: 41748 | G110: 0.98525
A111: 20 | B111: 4 | C111: H1 | D111: 110 | E111: 2014-04-20 | F111: 41749 | G111: 0.97685
A112: 21 | B112: 4 | C112: H1 | D112: 111 | E112: 2014-04-21 | F112: 41750 | G112: 0.96846
A113: 22 | B113: 4 | C113: H1 | D113: 112 | E113: 2014-04-22 | F113: 41751 | G113: 0.96009
A114: 23 | B114: 4 | C114: H1 | D114: 113 | E114: 2014-04-23 | F114: 41752 | G114: 0.95172
A115: 24 | B115: 4 | C115: H1 | D115: 114 | E115: 2014-04-24 | F115: 41753 | G115: 0.94337
A116: 25 | B116: 4 | C116: H1 | D116: 115 | E116: 2014-04-25 | F116: 41754 | G116: 0.93503
A117: 26 | B117: 4 | C117: H1 | D117: 116 | E117: 2014-04-26 | F117: 41755 | G117: 0.92671
A118: 27 | B118: 4 | C118: H1 | D118: 117 | E118: 2014-04-27 | F118: 41756 | G118: 0.91842
A119: 28 | B119: 4 | C119: H1 | D119: 118 | E119: 2014-04-28 | F119: 41757 | G119: 0.91015
A120: 29 | B120: 4 | C120: H1 | D120: 119 | E120: 2014-04-29 | F120: 41758 | G120: 0.90191
A121: 30 | B121: 4 | C121: H1 | D121: 120 | E121: 2014-04-30 | F121: 41759 | G121: 0.89369
A122: 1 | B122: 5 | C122: H1 | D122: 121 | E122: 2014-05-01 | F122: 41760 | G122: 0.88551
A123: 2 | B123: 5 | C123: H1 | D123: 122 | E123: 2014-05-02 | F123: 41761 | G123: 0.87736
A124: 3 | B124: 5 | C124: H1 | D124: 123 | E124: 2014-05-03 | F124: 41762 | G124: 0.86925
A125: 4 | B125: 5 | C125: H1 | D125: 124 | E125: 2014-05-04 | F125: 41763 | G125: 0.86117
A126: 5 | B126: 5 | C126: H1 | D126: 125 | E126: 2014-05-05 | F126: 41764 | G126: 0.85314
A127: 6 | B127: 5 | C127: H1 | D127: 126 | E127: 2014-05-06 | F127: 41765 | G127: 0.84515
A128: 7 | B128: 5 | C128: H1 | D128: 127 | E128: 2014-05-07 | F128: 41766 | G128: 0.83721
A129: 8 | B129: 5 | C129: H1 | D129: 128 | E129: 2014-05-08 | F129: 41767 | G129: 0.82931
A130: 9 | B130: 5 | C130: H1 | D130: 129 | E130: 2014-05-09 | F130: 41768 | G130: 0.82147
A131: 10 | B131: 5 | C131: H1 | D131: 130 | E131: 2014-05-10 | F131: 41769 | G131: 0.81368
A132: 11 | B132: 5 | C132: H1 | D132: 131 | E132: 2014-05-11 | F132: 41770 | G132: 0.80594
A133: 12 | B133: 5 | C133: H1 | D133: 132 | E133: 2014-05-12 | F133: 41771 | G133: 0.79826
A134: 13 | B134: 5 | C134: H1 | D134: 133 | E134: 2014-05-13 | F134: 41772 | G134: 0.79064
A135: 14 | B135: 5 | C135: H1 | D135: 134 | E135: 2014-05-14 | F135: 41773 | G135: 0.78308
A136: 15 | B136: 5 | C136: H1 | D136: 135 | E136: 2014-05-15 | F136: 41774 | G136: 0.77559
A137: 16 | B137: 5 | C137: H1 | D137: 136 | E137: 2014-05-16 | F137: 41775 | G137: 0.76816
A138: 17 | B138: 5 | C138: H1 | D138: 137 | E138: 2014-05-17 | F138: 41776 | G138: 0.76081
A139: 18 | B139: 5 | C139: H1 | D139: 138 | E139: 2014-05-18 | F139: 41777 | G139: 0.75352
A140: 19 | B140: 5 | C140: H1 | D140: 139 | E140: 2014-05-19 | F140: 41778 | G140: 0.74631
A141: 20 | B141: 5 | C141: H1 | D141: 140 | E141: 2014-05-20 | F141: 41779 | G141: 0.73917
A142: 21 | B142: 5 | C142: H1 | D142: 141 | E142: 2014-05-21 | F142: 41780 | G142: 0.7321
A143: 22 | B143: 5 | C143: H1 | D143: 142 | E143: 2014-05-22 | F143: 41781 | G143: 0.72512
A144: 23 | B144: 5 | C144: H1 | D144: 143 | E144: 2014-05-23 | F144: 41782 | G144: 0.71822
A145: 24 | B145: 5 | C145: H1 | D145: 144 | E145: 2014-05-24 | F145: 41783 | G145: 0.71141
A146: 25 | B146: 5 | C146: H1 | D146: 145 | E146: 2014-05-25 | F146: 41784 | G146: 0.70467
A147: 26 | B147: 5 | C147: H1 | D147: 146 | E147: 2014-05-26 | F147: 41785 | G147: 0.69803
A148: 27 | B148: 5 | C148: H1 | D148: 147 | E148: 2014-05-27 | F148: 41786 | G148: 0.69147
A149: 28 | B149: 5 | C149: H1 | D149: 148 | E149: 2014-05-28 | F149: 41787 | G149: 0.68501
A150: 29 | B150: 5 | C150: H1 | D150: 149 | E150: 2014-05-29 | F150: 41788 | G150: 0.67864
A151: 30 | B151: 5 | C151: H1 | D151: 150 | E151: 2014-05-30 | F151: 41789 | G151: 0.67237
A152: 31 | B152: 5 | C152: H1 | D152: 151 | E152: 2014-05-31 | F152: 41790 | G152: 0.66619
A153: 1 | B153: 6 | C153: H1 | D153: 152 | E153: 2014-06-01 | F153: 41791 | G153: 0.66011
A154: 2 | B154: 6 | C154: H1 | D154: 153 | E154: 2014-06-02 | F154: 41792 | G154: 0.65413
A155: 3 | B155: 6 | C155: H1 | D155: 154 | E155: 2014-06-03 | F155: 41793 | G155: 0.64826
A156: 4 | B156: 6 | C156: H1 | D156: 155 | E156: 2014-06-04 | F156: 41794 | G156: 0.64249
A157: 5 | B157: 6 | C157: H1 | D157: 156 | E157: 2014-06-05 | F157: 41795 | G157: 0.63682
A158: 6 | B158: 6 | C158: H1 | D158: 157 | E158: 2014-06-06 | F158: 41796 | G158: 0.63126
A159: 7 | B159: 6 | C159: H1 | D159: 158 | E159: 2014-06-07 | F159: 41797 | G159: 0.62582
A160: 8 | B160: 6 | C160: H1 | D160: 159 | E160: 2014-06-08 | F160: 41798 | G160: 0.62048
A161: 9 | B161: 6 | C161: H1 | D161: 160 | E161: 2014-06-09 | F161: 41799 | G161: 0.61525
A162: 10 | B162: 6 | C162: H1 | D162: 161 | E162: 2014-06-10 | F162: 41800 | G162: 0.61014
A163: 11 | B163: 6 | C163: H1 | D163: 162 | E163: 2014-06-11 | F163: 41801 | G163: 0.60515
A164: 12 | B164: 6 | C164: H1 | D164: 163 | E164: 2014-06-12 | F164: 41802 | G164: 0.60027
A165: 13 | B165: 6 | C165: H1 | D165: 164 | E165: 2014-06-13 | F165: 41803 | G165: 0.59551
A166: 14 | B166: 6 | C166: H1 | D166: 165 | E166: 2014-06-14 | F166: 41804 | G166: 0.59087
A167: 15 | B167: 6 | C167: H1 | D167: 166 | E167: 2014-06-15 | F167: 41805 | G167: 0.58635
A168: 16 | B168: 6 | C168: H1 | D168: 167 | E168: 2014-06-16 | F168: 41806 | G168: 0.58195
A169: 17 | B169: 6 | C169: H1 | D169: 168 | E169: 2014-06-17 | F169: 41807 | G169: 0.57768
A170: 18 | B170: 6 | C170: H1 | D170: 169 | E170: 2014-06-18 | F170: 41808 | G170: 0.57353
A171: 19 | B171: 6 | C171: H1 | D171: 170 | E171: 2014-06-19 | F171: 41809 | G171: 0.56951
A172: 20 | B172: 6 | C172: H1 | D172: 171 | E172: 2014-06-20 | F172: 41810 | G172: 0.56562
A173: 21 | B173: 6 | C173: H1 | D173: 172 | E173: 2014-06-21 | F173: 41811 | G173: 0.56186
A174: 22 | B174: 6 | C174: H1 | D174: 173 | E174: 2014-06-22 | F174: 41812 | G174: 0.55822
A175: 23 | B175: 6 | C175: H1 | D175: 174 | E175: 2014-06-23 | F175: 41813 | G175: 0.55472
A176: 24 | B176: 6 | C176: H1 | D176: 175 | E176: 2014-06-24 | F176: 41814 | G176: 0.55135
A177: 25 | B177: 6 | C177: H1 | D177: 176 | E177: 2014-06-25 | F177: 41815 | G177: 0.54811
A178: 26 | B178: 6 | C178: H1 | D178: 177 | E178: 2014-06-26 | F178: 41816 | G178: 0.545
A179: 27 | B179: 6 | C179: H1 | D179: 178 | E179: 2014-06-27 | F179: 41817 | G179: 0.54203
A180: 28 | B180: 6 | C180: H1 | D180: 179 | E180: 2014-06-28 | F180: 41818 | G180: 0.5392
A181: 29 | B181: 6 | C181: H1 | D181: 180 | E181: 2014-06-29 | F181: 41819 | G181: 0.5365
A182: 30 | B182: 6 | C182: H1 | D182: 181 | E182: 2014-06-30 | F182: 41820 | G182: 0.53394
A183: 1 | B183: 7 | C183: H1 | D183: 182 | E183: 2014-07-01 | F183: 41821 | G183: 0.53151
A184: 2 | B184: 7 | C184: H1 | D184: 183 | E184: 2014-07-02 | F184: 41822 | G184: 0.52923
A185: 3 | B185: 7 | C185: H1 | D185: 184 | E185: 2014-07-03 | F185: 41823 | G185: 0.52709
A186: 4 | B186: 7 | C186: H1 | D186: 185 | E186: 2014-07-04 | F186: 41824 | G186: 0.52508
A187: 5 | B187: 7 | C187: H1 | D187: 186 | E187: 2014-07-05 | F187: 41825 | G187: 0.52322
A188: 6 | B188: 7 | C188: H1 | D188: 187 | E188: 2014-07-06 | F188: 41826 | G188: 0.5215
A189: 7 | B189: 7 | C189: H1 | D189: 188 | E189: 2014-07-07 | F189: 41827 | G189: 0.51992
A190: 8 | B190: 7 | C190: H1 | D190: 189 | E190: 2014-07-08 | F190: 41828 | G190: 0.51848
A191: 9 | B191: 7 | C191: H1 | D191: 190 | E191: 2014-07-09 | F191: 41829 | G191: 0.51718
A192: 10 | B192: 7 | C192: H1 | D192: 191 | E192: 2014-07-10 | F192: 41830 | G192: 0.51603
A193: 11 | B193: 7 | C193: H1 | D193: 192 | E193: 2014-07-11 | F193: 41831 | G193: 0.51502
A194: 12 | B194: 7 | C194: H1 | D194: 193 | E194: 2014-07-12 | F194: 41832 | G194: 0.51416
A195: 13 | B195: 7 | C195: H1 | D195: 194 | E195: 2014-07-13 | F195: 41833 | G195: 0.51344
A196: 14 | B196: 7 | C196: H1 | D196: 195 | E196: 2014-07-14 | F196: 41834 | G196: 0.51286
A197: 15 | B197: 7 | C197: H1 | D197: 196 | E197: 2014-07-15 | F197: 41835 | G197: 0.51243
A198: 16 | B198: 7 | C198: H1 | D198: 197 | E198: 2014-07-16 | F198: 41836 | G198: 0.51214
A199: 17 | B199: 7 | C199: H1 | D199: 198 | E199: 2014-07-17 | F199: 41837 | G199: 0.51199
A200: 18 | B200: 7 | C200: H1 | D200: 199 | E200: 2014-07-18 | F200: 41838 | G200: 0.512
... 897 more rows

Sheet Sheet3
